bitfinex/quotes_BTCUSD_20240723
["timestamp","ask_amount","ask_price","bid_price","bid_amount"]
[1721728458760,3.11960672,67156.0,67151.0,0.085]
[1721728458966,3.14260672,67156.0,67151.0,0.085]
[1721728460681,3.16106235,67156.0,67151.0,0.085]
[1721728460886,2.86324835,67156.0,67151.0,0.085]
[1721728461704,3.16106235,67156.0,67151.0,0.085]
[1721728462299,3.16106235,67156.0,67151.0,0.002]
[1721728462713,3.31193055,67156.0,67151.0,0.002]
[1721728463790,3.08699055,67156.0,67151.0,0.002]
[1721728464003,3.23408692,67156.0,67151.0,0.002]
[1721728467000,3.23373876,67156.0,67151.0,0.002]
[1721728469458,3.02227611,67156.0,67151.0,0.002]
[1721728469639,3.02227611,67156.0,67155.0,0.26537906]
[1721728470056,2.8755279,67156.0,67155.0,0.26537906]
[1721728470395,3.02366515,67156.0,67155.0,0.26537906]
[1721728470980,3.02366515,67156.0,67155.0,0.26532274]
[1721728471182,3.1706278,67156.0,67155.0,0.26532274]
[1721728473325,3.07944656,67156.0,67155.0,0.26532274]
[1721728473580,3.17119325,67156.0,67155.0,0.26532274]
[1721728473780,2.85837925,67156.0,67155.0,0.26532274]
[1721728474092,2.7114166,67156.0,67155.0,0.26532274]
[1721728474327,2.0114166,67156.0,67155.0,0.26532274]
[1721728474534,2.7114166,67156.0,67155.0,0.26532274]
[1721728474682,2.0114166,67156.0,67155.0,0.26532274]
[1721728474890,2.7114166,67156.0,67155.0,0.26532274]
[1721728475070,2.85837925,67156.0,67155.0,0.26532274]
[1721728475601,2.39270285,67156.0,67155.0,0.26532274]
[1721728475791,3.09270285,67156.0,67155.0,0.26532274]
[1721728476279,2.87337925,67156.0,67155.0,0.26532274]
[1721728479631,2.78163256,67156.0,67155.0,0.26532274]
[1721728479843,2.87558758,67156.0,67155.0,0.26532274]
[1721728480261,2.86058758,67156.0,67155.0,0.26532274]
[1721728480797,2.21581093,67156.0,67155.0,0.26532274]
[1721728481022,2.19281093,67156.0,67155.0,0.33172274]
[1721728482229,1.09499693,67156.0,67155.0,0.33172274]
[1721728482438,1.08602873,67156.0,67155.0,0.33172274]
[1721728482797,0.9945786,67156.0,67155.0,0.33172274]
[1721728483543,1.11996483,67156.0,67155.0,0.33172274]
[1721728483742,1.10596483,67156.0,67155.0,0.33172274]
[1721728483926,0.9895786,67156.0,67155.0,0.33172274]
[1721728484129,0.9895786,67156.0,67155.0,0.36672274]
[1721728484130,0.2360436,67156.0,67155.0,0.36672274]
[1721728484355,0.23448081,67156.0,67155.0,0.36672274]
[1721728485062,0.20648081,67156.0,67155.0,0.36672274]
[1721728485285,0.22048081,67156.0,67155.0,0.36672274]
[1721728485865,0.26101991,67156.0,67155.0,0.36672274]
[1721728486044,0.320827,67156.0,67155.0,0.36672274]
[1721728486481,0.26101991,67156.0,67155.0,0.36672274]
[1721728487225,0.27501991,67156.0,67155.0,0.36672274]
[1721728488598,0.27501991,67156.0,67155.0,0.41672274]
[1721728489033,0.27501991,67156.0,67155.0,0.71454274]
[1721728489245,0.3864584,67156.0,67155.0,0.76454274]
[1721728490236,0.3584584,67156.0,67155.0,0.76454274]
[1721728490440,0.24701991,67156.0,67155.0,0.76454274]
[1721728490677,0.3834584,67156.0,67155.0,0.76454274]
[1721728490816,0.27201991,67156.0,67155.0,0.76454274]
[1721728492620,0.36111267,67156.0,67155.0,0.76454274]
[1721728493029,0.27201991,67156.0,67155.0,0.76454274]
[1721728493357,0.36109799,67156.0,67155.0,0.76454274]
[1721728493564,0.27201991,67156.0,67155.0,0.76454274]
[1721728493690,0.27201991,67156.0,67155.0,0.66454274]
[1721728494314,0.36108383,67156.0,67155.0,0.66454274]
[1721728494522,0.36108383,67156.0,67155.0,0.76454274]
[1721728494523,0.35008383,67156.0,67155.0,0.76454274]
[1721728494871,0.33608383,67156.0,67155.0,0.76454274]
[1721728495026,0.35008383,67156.0,67155.0,0.76454274]
[1721728495228,0.36408383,67156.0,67155.0,0.76454274]
[1721728495481,0.26101991,67156.0,67155.0,0.76454274]
[1721728495818,0.35006703,67156.0,67155.0,0.76454274]
[1721728496422,0.24701991,67156.0,67155.0,0.76454274]
[1721728497108,0.27501991,67156.0,67155.0,0.76454274]
[1721728497468,0.26101991,67156.0,67155.0,0.76454274]
[1721728497851,0.27401991,67156.0,67155.0,0.76454274]
[1721728498224,0.34078805,67156.0,67155.0,0.76454274]
[1721728498452,0.34078284,67156.0,67155.0,0.76454274]
[1721728498666,0.27401991,67156.0,67155.0,0.76454274]
[1721728498878,0.34078284,67156.0,67155.0,0.76454274]
[1721728499292,0.34078284,67156.0,67155.0,0.66454274]
[1721728500280,0.34078284,67156.0,67155.0,0.71454274]
[1721728501313,0.27401991,67156.0,67155.0,0.71454274]
[1721728501944,0.49192367,67156.0,67155.0,0.62954274]
[1721728502191,1.10754754,67156.0,67155.0,0.56314274]
[1721728502416,1.31636891,67156.0,67155.0,0.56314274]
[1721728502660,1.33936891,67156.0,67155.0,0.48044274]
[1721728502873,1.54653156,67156.0,67155.0,0.48044274]
[1721728503150,1.68002051,67156.0,67155.0,0.48044274]
[1721728503377,1.60637849,67156.0,67155.0,0.48044274]
[1721728505082,1.54653156,67156.0,67155.0,0.48044274]
[1721728505288,1.60664056,67156.0,67155.0,0.48044274]
[1721728507168,1.75685375,67156.0,67155.0,0.48044274]
[1721728508005,1.74385375,67156.0,67155.0,0.48044274]
[1721728508226,1.53353156,67156.0,67155.0,0.48044274]
[1721728508437,1.53716952,67156.0,67155.0,0.55754274]
[1721728508642,1.38692125,67156.0,67155.0,0.55754274]
[1721728510162,1.40092125,67156.0,67155.0,0.55754274]
[1721728511359,1.40190613,67156.0,67155.0,0.55754274]
[1721728511602,1.25105478,67156.0,67155.0,0.55754274]
[1721728512668,1.10409213,67156.0,67155.0,0.55754274]
[1721728513528,1.16379013,67156.0,67155.0,0.55754274]
[1721728513927,1.04255491,67156.0,67155.0,0.55754274]
[1721728514685,1.34036891,67156.0,67155.0,0.55754274]
[1721728514902,1.04255491,67156.0,67155.0,0.48044274]
[1721728515102,1.10875491,67156.0,67155.0,0.48044274]
[1721728515514,1.2536301,67156.0,67155.0,0.48044274]
[1721728515715,1.40656891,67156.0,67155.0,0.48044274]
[1721728516358,1.6182566,67156.0,67155.0,0.48044274]
[1721728516777,1.61827832,67156.0,67155.0,0.48044274]
[1721728517184,1.63327832,67156.0,67155.0,0.48044274]
[1721728517474,1.46791477,67156.0,67155.0,0.48044274]
[1721728517846,1.61830051,67156.0,67155.0,0.48044274]
[1721728518305,1.55210051,67156.0,67155.0,0.48044274]
[1721728518489,1.40171477,67156.0,67155.0,0.48044274]
[1721728519022,1.47961477,67156.0,67155.0,0.48136674]
[1721728519217,1.62657742,67156.0,67155.0,0.48136674]
[1721728519612,1.62741742,67156.0,67155.0,0.48136674]
[1721728520664,1.62677863,67156.0,67155.0,0.48136674]
[1721728521722,1.93959263,67156.0,67155.0,0.48136674]
[1721728521948,2.00419263,67156.0,67155.0,0.48136674]
[1721728522438,2.09950726,67156.0,67155.0,0.48136674]
[1721728523069,2.10838562,67156.0,67155.0,0.48136674]
[1721728523614,2.32780658,67156.0,67155.0,0.48136674]
[1721728524023,2.32887469,67156.0,67155.0,0.48136674]
[1721728524443,2.32889445,67156.0,67155.0,0.48136674]
[1721728524871,2.10933788,67156.0,67155.0,0.48136674]
[1721728525065,2.32889445,67156.0,67155.0,0.48136674]
[1721728525263,2.31389445,67156.0,67155.0,0.48136674]
[1721728525496,2.20706123,67156.0,67155.0,0.48136674]
[1721728525808,2.11128151,67156.0,67155.0,0.48136674]
[1721728526229,1.41128151,67156.0,67155.0,0.48136674]
[1721728526406,2.11128151,67156.0,67155.0,0.48136674]
[1721728526614,2.20725101,67156.0,67155.0,0.48136674]
[1721728526814,2.35421366,67156.0,67155.0,0.48136674]
[1721728527158,2.25824416,67156.0,67155.0,0.48136674]
[1721728527775,1.55824416,67156.0,67155.0,0.48136674]
[1721728527981,1.40240315,67156.0,67155.0,0.56356674]
[1721728528205,1.60240315,67156.0,67155.0,0.56356674]
[1721728528566,2.05521715,67156.0,67155.0,0.48136674]
[1721728528840,2.15128675,67156.0,67155.0,0.48136674]
[1721728529058,2.2982494,67156.0,67155.0,0.48136674]
[1721728530868,2.2842494,67156.0,67155.0,0.48136674]
[1721728531133,2.2702494,67156.0,67155.0,0.48136674]
[1721728531259,2.2842494,67156.0,67155.0,0.48136674]
[1721728532619,2.2982494,67156.0,67155.0,0.48136674]
[1721728533586,2.14098556,67156.0,67155.0,0.48136674]
[1721728533776,2.29911951,67156.0,67155.0,0.48136674]
[1721728534901,2.59693351,67156.0,67155.0,0.48136674]
[1721728535561,2.58293351,67156.0,67155.0,0.48136674]
[1721728535974,2.59693351,67156.0,67155.0,0.48136674]
[1721728536233,2.59693351,67156.0,67155.0,0.42180274]
[1721728536234,2.88074751,67156.0,67155.0,0.42180274]
[1721728536483,2.88074751,67156.0,67154.0,0.009207]
[1721728536484,1.697181,67155.0,67154.0,0.009207]
[1721728536700,2.57011551,67155.0,67154.0,1e-06]
[1721728536885,2.595134,67151.0,67150.0,0.009218]
[1721728537147,3.02328786,67151.0,67150.0,0.009218]
[1721728537397,3.17025051,67151.0,67150.0,0.009218]
[1721728537609,3.1858133,67151.0,67150.0,0.009218]
[1721728538707,3.1858133,67151.0,67150.0,1e-06]
[1721728539969,3.04167935,67151.0,67150.0,1e-06]
[1721728540194,3.18823535,67151.0,67150.0,1e-06]
[1721728540407,3.20223535,67151.0,67150.0,1e-06]
[1721728540626,3.21623535,67151.0,67150.0,1e-06]
[1721728543071,3.06438338,67151.0,67150.0,1e-06]
[1721728543276,3.22484098,67151.0,67150.0,1e-06]
[1721728545063,3.38194098,67151.0,67150.0,1e-06]
[1721728546671,2.492603,67145.0,67144.0,1e-06]
[1721728546871,2.92308051,67145.0,67144.0,1e-06]
[1721728547684,2.84678051,67145.0,67144.0,1e-06]
[1721728547940,2.86078051,67145.0,67144.0,1e-06]
[1721728549197,2.87478051,67145.0,67144.0,1e-06]
[1721728549516,3.02174316,67145.0,67144.0,1e-06]
[1721728549716,3.02063731,67145.0,67144.0,1e-06]
[1721728551565,3.23998319,67145.0,67144.0,1e-06]
[1721728552410,3.02063731,67145.0,67144.0,1e-06]
[1721728552819,2.95782808,67145.0,67144.0,1e-06]
[1721728553044,3.01981414,67145.0,67144.0,1e-06]
[1721728553245,3.51981414,67145.0,67144.0,1e-06]
[1721728553439,3.15675214,67145.0,67144.0,1e-06]
[1721728555211,3.37608367,67145.0,67144.0,1e-06]
[1721728555425,3.15675214,67145.0,67144.0,1e-06]
[1721728555847,2.99822356,67145.0,67144.0,1e-06]
[1721728556059,3.15684761,67145.0,67144.0,1e-06]
[1721728556288,3.37617751,67145.0,67144.0,1e-06]
[1721728556753,3.15684761,67145.0,67144.0,1e-06]
[1721728557449,3.37617751,67145.0,67144.0,1e-06]
[1721728557671,3.15731417,67145.0,67144.0,1e-06]
[1721728558127,3.37666359,67145.0,67144.0,1e-06]
[1721728558356,3.15731417,67145.0,67144.0,1e-06]
[1721728559015,2.99822356,67145.0,67144.0,1e-06]
[1721728559245,0.163938,67142.0,67140.0,0.009218]
[1721728559450,1.18872372,67142.0,67140.0,0.009218]
[1721728559646,1.78447572,67142.0,67140.0,0.009218]
[1721728559851,1.80003851,67142.0,67140.0,0.009218]
[1721728560613,1.80003851,67142.0,67141.0,0.144]
[1721728560614,1.70116251,67142.0,67141.0,0.144]
[1721728560949,1.08350707,67142.0,67141.0,0.144]
[1721728561142,0.99750707,67142.0,67141.0,0.144]
[1721728561518,1.14792295,67142.0,67141.0,0.144]
[1721728561780,0.85004695,67142.0,67141.0,0.179]
[1721728562021,0.25281707,67142.0,67141.0,0.179]
[1721728562255,0.17501991,67142.0,67141.0,0.229]
[1721728562676,0.14701991,67142.0,67141.0,0.229]
[1721728562992,0.17501991,67142.0,67141.0,0.229]
[1721728563224,0.16101991,67142.0,67141.0,0.229]
[1721728563405,0.24701991,67142.0,67141.0,0.229]
[1721728563740,0.27501991,67142.0,67141.0,0.229]
[1721728564758,1.21487725,67142.0,67141.0,0.144]
[1721728564990,1.08118887,67142.0,67141.0,0.144]
[1721728565388,1.01970991,67142.0,67141.0,0.144]
[1721728565597,1.08034003,67142.0,67141.0,0.144]
[1721728565973,1.06634003,67142.0,67141.0,0.144]
[1721728566154,1.08034003,67142.0,67141.0,0.144]
[1721728566555,1.06634003,67142.0,67141.0,0.144]
[1721728566759,1.05234003,67142.0,67141.0,0.144]
[1721728566961,1.06634003,67142.0,67141.0,0.144]
[1721728567163,1.08034003,67142.0,67141.0,0.144]
[1721728567558,1.09434003,67142.0,67141.0,0.144]
[1721728567765,0.79646403,67142.0,67141.0,0.179]
[1721728568387,0.49858803,67142.0,67141.0,0.179]
[1721728568622,0.49802349,67142.0,67141.0,0.179]
[1721728569674,0.34908549,67142.0,67141.0,0.179]
[1721728572591,0.28901991,67142.0,67141.0,0.179]
[1721728573606,0.73583391,67142.0,67141.0,0.144]
[1721728573817,1.52995364,67142.0,67141.0,0.0834]
[1721728574018,1.55295364,67142.0,67141.0,0.0834]
[1721728574220,1.70343728,67142.0,67141.0,0.0834]
[1721728574426,1.55295364,67142.0,67141.0,0.0834]
[1721728574983,1.55235202,67142.0,67141.0,0.0834]
[1721728575183,1.41393426,67142.0,67141.0,0.0834]
[1721728575784,1.41393426,67142.0,67141.0,0.002]
[1721728576445,1.41381417,67142.0,67141.0,0.002]
[1721728578209,1.41362479,67142.0,67141.0,0.002]
[1721728578441,1.56058744,67142.0,67141.0,0.002]
[1721728580403,1.88225502,67142.0,67141.0,0.002]
[1721728580615,1.85325502,67142.0,67141.0,0.002]
[1721728580827,1.82525502,67142.0,67141.0,0.002]
[1721728581033,1.83925502,67142.0,67141.0,0.002]
[1721728581235,1.85239764,67142.0,67141.0,0.002]
[1721728581454,1.83839764,67142.0,67141.0,0.002]
[1721728582064,1.69143499,67142.0,67141.0,0.002]
[1721728582264,1.68264341,67142.0,67141.0,0.002]
[1721728582511,1.68264341,67142.0,67141.0,0.0819]
[1721728582918,1.68264341,67142.0,67141.0,0.082824]
[1721728583144,1.38476741,67142.0,67141.0,0.082824]
[1721728583324,1.54573006,67142.0,67141.0,0.082824]
[1721728584598,1.54651001,67142.0,67141.0,0.082824]
[1721728584805,1.39954736,67142.0,67141.0,0.148524]
[1721728584983,1.59954736,67142.0,67141.0,0.148524]
[1721728586201,0.70591936,67142.0,67141.0,0.148524]
[1721728586412,0.68291936,67142.0,67141.0,0.148524]
[1721728586606,0.48291936,67142.0,67141.0,0.183524]
[1721728587164,0.33398136,67142.0,67141.0,0.183524]
[1721728587506,0.45491936,67142.0,67141.0,0.183524]
[1721728587759,0.30629541,67142.0,67141.0,0.183524]
[1721728587931,0.33429541,67142.0,67141.0,0.183524]
[1721728588176,0.48323341,67142.0,67141.0,0.183524]
[1721728588382,0.33429541,67142.0,67141.0,0.183524]
[1721728588707,0.4848792,67142.0,67141.0,0.183524]
[1721728589113,0.33429541,67142.0,67141.0,0.183524]
[1721728589946,0.33429541,67142.0,67141.0,0.481404]
[1721728590981,0.33485619,67142.0,67141.0,0.481404]
[1721728591170,0.48544583,67142.0,67141.0,0.481404]
[1721728591372,0.68544583,67142.0,67141.0,0.481404]
[1721728591767,0.48544583,67142.0,67141.0,0.481404]
[1721728592395,0.48544583,67142.0,67141.0,0.531404]
[1721728592600,0.33485619,67142.0,67141.0,0.531404]
[1721728593419,0.32085619,67142.0,67141.0,0.531404]
[1721728593858,0.33485619,67142.0,67141.0,0.531404]
[1721728594200,0.32085619,67142.0,67141.0,0.531404]
[1721728594526,0.33485619,67142.0,67141.0,0.531404]
[1721728597198,0.27501991,67142.0,67141.0,0.531404]
[1721728597373,0.33660174,67142.0,67141.0,0.531404]
[1721728597953,0.33660174,67142.0,67141.0,0.446404]
[1721728597954,0.48553974,67142.0,67141.0,0.446404]
[1721728598155,0.63617054,67142.0,67141.0,0.446404]
[1721728598746,0.48553974,67142.0,67141.0,0.481404]
[1721728599162,0.93404654,67142.0,67141.0,0.446404]
[1721728599570,0.33660174,67142.0,67141.0,0.481404]
[1721728599772,0.63621699,67142.0,67141.0,0.481404]
[1721728600203,0.48553974,67142.0,67141.0,0.481404]
[1721728600390,0.48483541,67142.0,67141.0,0.481404]
[1721728601850,1.08058741,67142.0,67141.0,0.446404]
[1721728602266,0.78271141,67142.0,67141.0,0.446404]
[1721728603263,0.78271141,67142.0,67141.0,0.481404]
[1721728603466,0.72183391,67142.0,67141.0,0.481404]
[1721728603691,0.78295627,67142.0,67141.0,0.481404]
[1721728606760,0.72183391,67142.0,67141.0,0.481404]
[1721728606998,0.78268274,67142.0,67141.0,0.481404]
[1721728608962,0.78268274,67142.0,67141.0,0.446404]
[1721728610013,0.72183391,67142.0,67141.0,0.446404]
[1721728610234,0.78289771,67142.0,67141.0,0.446404]
[1721728612996,0.78289771,67142.0,67141.0,0.481404]
[1721728613207,0.72183391,67142.0,67141.0,0.446404]
[1721728613437,0.78282294,67142.0,67141.0,0.446404]
[1721728613868,0.48494694,67142.0,67141.0,0.481404]
[1721728615080,0.78282294,67142.0,67141.0,0.481404]
[1721728615283,0.78282294,67142.0,67141.0,0.415704]
[1721728618805,0.78282294,67142.0,67141.0,0.380704]
[1721728619005,1.08069894,67142.0,67141.0,0.380704]
[1721728619591,1.01970991,67142.0,67141.0,0.380704]
[1721728619795,1.08013098,67142.0,67141.0,0.380704]
[1721728620237,0.33544098,67142.0,67141.0,0.415704]
[1721728620445,0.48437898,67142.0,67141.0,0.415704]
[1721728620867,0.33544098,67142.0,67141.0,0.415704]
[1721728621072,0.48437898,67142.0,67141.0,0.415704]
[1721728621711,0.33544098,67142.0,67141.0,0.465704]
[1721728622307,0.48437898,67142.0,67141.0,0.465704]
[1721728622517,0.33544098,67142.0,67141.0,0.465704]
[1721728622758,0.27501991,67142.0,67141.0,0.465704]
[1721728622963,0.335649,67142.0,67141.0,0.465704]
[1721728625375,0.484587,67142.0,67141.0,0.465704]
[1721728625586,0.335649,67142.0,67141.0,0.465704]
[1721728626065,0.42395791,67142.0,67141.0,0.465704]
[1721728626268,0.48429011,67142.0,67141.0,0.465704]
[1721728627122,0.95135132,67142.0,67141.0,0.300804]
[1721728627331,1.24922732,67142.0,67141.0,0.300804]
[1721728627716,1.14114211,67142.0,67141.0,0.300804]
[1721728628805,1.14129705,67142.0,67141.0,0.300804]
[1721728629239,1.63917305,67142.0,67141.0,0.300804]
[1721728629514,2.13816362,67142.0,67141.0,0.300804]
[1721728630531,2.11016362,67142.0,67141.0,0.300804]
[1721728630961,2.13816362,67142.0,67141.0,0.300804]
[1721728631378,2.12416362,67142.0,67141.0,0.300804]
[1721728631800,2.13816362,67142.0,67141.0,0.300804]
[1721728632203,2.52904907,67142.0,67141.0,0.300804]
[1721728632440,2.46856191,67142.0,67141.0,0.300804]
[1721728632646,2.16089402,67142.0,67141.0,0.300804]
[1721728632863,1.66089402,67142.0,67141.0,0.300804]
[1721728633071,1.75478531,67142.0,67141.0,0.300804]
[1721728633278,1.88106817,67142.0,67141.0,0.300804]
[1721728633496,2.38106817,67142.0,67141.0,0.300804]
[1721728634350,2.25478581,67142.0,67141.0,0.300804]
[1721728634553,2.38104923,67142.0,67141.0,0.300804]
[1721728635585,2.15849183,67142.0,67141.0,0.300804]
[1721728635795,2.37863111,67142.0,67141.0,0.300804]
[1721728636414,2.15849183,67142.0,67141.0,0.300804]
[1721728636593,2.37895734,67142.0,67141.0,0.300804]
[1721728637264,2.15882717,67142.0,67141.0,0.300804]
[1721728637696,2.90619599,67142.0,67141.0,0.300804]
[1721728637893,2.68606582,67142.0,67141.0,0.300804]
[1721728638097,2.90619227,67142.0,67141.0,0.300804]
[1721728638299,2.37895362,67142.0,67141.0,0.300804]
[1721728638507,1.45882717,67142.0,67141.0,0.300804]
[1721728638716,1.65811651,67142.0,67141.0,0.300804]
[1721728638926,1.65761446,67142.0,67141.0,0.300804]
[1721728639344,1.87772403,67142.0,67141.0,0.300804]
[1721728639564,1.65761446,67142.0,67141.0,0.300804]
[1721728640168,1.87772403,67142.0,67141.0,0.300804]
[1721728641005,1.65761446,67142.0,67141.0,0.300804]
[1721728641746,1.60168591,67142.0,67141.0,0.300804]
[1721728641952,1.67795279,67142.0,67141.0,0.300804]
[1721728642150,1.65783642,67142.0,67141.0,0.300804]
[1721728642911,1.87795279,67142.0,67141.0,0.300804]
[1721728643117,1.65783642,67142.0,67141.0,0.300804]
[1721728643542,1.87795279,67142.0,67141.0,0.300804]
[1721728643848,1.65783642,67142.0,67141.0,0.300804]
[1721728643996,1.87795279,67142.0,67141.0,0.300804]
[1721728644999,1.65790561,67142.0,67141.0,0.300804]
[1721728645207,1.87803486,67142.0,67141.0,0.300804]
[1721728646510,1.87811615,67142.0,67141.0,0.300804]
[1721728648394,1.8779882,67142.0,67141.0,0.300804]
[1721728650054,1.6779882,67142.0,67141.0,0.300804]
[1721728650262,1.8779882,67142.0,67141.0,0.300804]
[1721728650861,2.10225085,67142.0,67141.0,0.300804]
[1721728651095,2.40012685,67142.0,67141.0,0.300804]
[1721728651315,2.18000362,67142.0,67141.0,0.300804]
[1721728651546,2.12382456,67142.0,67141.0,0.300804]
[1721728651808,2.17993812,67142.0,67141.0,0.300804]
[1721728652279,2.40005597,67142.0,67141.0,0.300804]
[1721728652489,2.49096182,67142.0,67141.0,0.300804]
[1721728654456,2.27084397,67142.0,67141.0,0.300804]
[1721728654671,2.12382456,67142.0,67141.0,0.300804]
[1721728654893,2.26927675,67142.0,67141.0,0.300804]
[1721728656296,2.28427675,67142.0,67141.0,0.300804]
[1721728656705,2.26927675,67142.0,67141.0,0.300804]
[1721728657346,2.1223141,67142.0,67141.0,0.300804]
[1721728657915,2.12384339,67142.0,67141.0,0.300804]
[1721728663164,2.13884339,67142.0,67141.0,0.300804]
[1721728663779,2.12484339,67142.0,67141.0,0.300804]
[1721728664200,2.13884339,67142.0,67141.0,0.300804]
[1721728664539,2.14023436,67142.0,67141.0,0.300804]
[1721728665576,2.28719701,67142.0,67141.0,0.300804]
[1721728665788,2.62411036,67142.0,67141.0,0.30074284]
[1721728666218,2.63811036,67142.0,67141.0,0.30074284]
[1721728666643,2.62411036,67142.0,67141.0,0.30074284]
[1721728666877,2.63811036,67142.0,67141.0,0.30074284]
[1721728667082,2.62411036,67142.0,67141.0,0.30074284]
[1721728667288,2.77138645,67142.0,67141.0,0.30074284]
[1721728667722,2.63847833,67142.0,67141.0,0.30074284]
[1721728668186,2.62447833,67142.0,67141.0,0.30074284]
[1721728668622,2.63847833,67142.0,67141.0,0.30074284]
[1721728668794,2.32560233,67142.0,67141.0,0.30074284]
[1721728669255,2.34060233,67142.0,67141.0,0.30074284]
[1721728669486,2.48756498,67142.0,67141.0,0.30074284]
[1721728670099,2.78544098,67142.0,67141.0,0.30074284]
[1721728670484,2.48756498,67142.0,67141.0,0.30074284]
[1721728670896,2.43076191,67142.0,67141.0,0.30074284]
[1721728671032,2.48791336,67142.0,67141.0,0.30074284]
[1721728672074,2.78578936,67142.0,67141.0,0.30074284]
[1721728672289,2.48791336,67142.0,67141.0,0.30074284]
[1721728672699,2.78578936,67142.0,67141.0,0.30074284]
[1721728673019,2.48791336,67142.0,67141.0,0.30074284]
[1721728674088,2.48765615,67142.0,67141.0,0.30074284]
[1721728678422,2.27265615,67142.0,67141.0,0.30074284]
[1721728678850,1.7872935,67142.0,67141.0,0.30074284]
[1721728679049,1.7642935,67142.0,67141.0,0.43864284]
[1721728679305,1.4664175,67142.0,67141.0,0.43864284]
[1721728679477,1.6664175,67142.0,67141.0,0.43864284]
[1721728679904,1.51758591,67142.0,67141.0,0.43864284]
[1721728680024,1.66976221,67142.0,67141.0,0.37824284]
[1721728680239,1.8164422,67142.0,67141.0,0.37824284]
[1721728680955,1.69247955,67142.0,67141.0,0.37824284]
[1721728682224,1.69331955,67142.0,67141.0,0.37824284]
[1721728683361,1.69374034,67142.0,67141.0,0.37824284]
[1721728683560,1.49374034,67142.0,67141.0,0.37824284]
[1721728683762,1.69374034,67142.0,67141.0,0.37824284]
[1721728683963,2.14851634,67142.0,67141.0,0.30074284]
[1721728686344,1.90500191,67142.0,67141.0,0.30074284]
[1721728686522,2.05739227,67142.0,67141.0,0.30074284]
[1721728687394,1.99169227,67142.0,67141.0,0.30074284]
[1721728687647,1.79169227,67142.0,67141.0,0.30074284]
[1721728687854,2.49169227,67142.0,67141.0,0.30074284]
[1721728689515,2.33930191,67142.0,67141.0,0.30074284]
[1721728689715,2.49454987,67142.0,67141.0,0.30074284]
[1721728690655,2.55914987,67142.0,67141.0,0.30074284]
[1721728692798,2.55838915,67142.0,67141.0,0.30074284]
[1721728695535,2.57338915,67142.0,67141.0,0.30074284]
[1721728695735,2.41890191,67142.0,67141.0,0.30074284]
[1721728695960,2.57375908,67142.0,67141.0,0.30074284]
[1721728696240,2.72072173,67142.0,67141.0,0.30074284]
[1721728696863,2.72062246,67142.0,67141.0,0.30074284]
[1721728699087,3.01849846,67142.0,67141.0,0.30074284]
[1721728699291,3.09659846,67142.0,67141.0,0.27088951]
[1721728699717,3.09659846,67142.0,67141.0,0.12194951]
[1721728700077,3.25369846,67142.0,67141.0,0.12194951]
[1721728700439,3.25363645,67142.0,67141.0,0.09216051]
[1721728700653,3.53751245,67142.0,67141.0,0.00279351]
[1721728700863,1.85316,67141.0,67140.0,5.1e-07]
[1721728701071,2.72278046,67141.0,67140.0,5.1e-07]
[1721728701474,3.02066046,67141.0,67140.0,5.1e-07]
[1721728701839,3.0640392,67141.0,67140.0,5.1e-07]
[1721728702436,3.0780392,67141.0,67140.0,5.1e-07]
[1721728703000,3.0920392,67141.0,67140.0,5.1e-07]
[1721728704222,2.35356,67132.0,67124.0,0.000843]
[1721728704430,2.92503781,67132.0,67123.0,0.009218]
[1721728705061,2.9406256,67132.0,67123.0,0.009218]
[1721728705485,2.96268606,67132.0,67123.0,0.009218]
[1721728705628,2.97668606,67132.0,67123.0,0.009218]
[1721728705827,3.07767743,67132.0,67123.0,0.009218]
[1721728706313,3.09167743,67132.0,67123.0,0.009218]
[1721728708699,3.09189555,67132.0,67123.0,0.009218]
[1721728709018,3.06389555,67132.0,67123.0,0.009218]
[1721728709239,3.07789555,67132.0,67123.0,0.009218]
[1721728709385,3.09189555,67132.0,67123.0,0.009218]
[1721728710256,3.38981555,67132.0,67123.0,0.009218]
[1721728710462,2.117102,67124.0,67123.0,0.009218]
[1721728710667,2.46415839,67124.0,67123.0,0.009218]
[1721728710874,2.56415839,67124.0,67123.0,0.009218]
[1721728711891,2.47291332,67124.0,67123.0,0.009218]
[1721728712099,2.59279637,67124.0,67123.0,0.009218]
[1721728712300,2.73975902,67124.0,67123.0,0.009218]
[1721728712503,2.95963888,67124.0,67123.0,0.009218]
[1721728715104,2.95961442,67124.0,67123.0,0.009218]
[1721728715585,2.73978247,67124.0,67123.0,0.009218]
[1721728716173,2.51651982,67124.0,67123.0,0.088018]
[1721728716375,2.31651982,67124.0,67123.0,0.088018]
[1721728716579,2.51651982,67124.0,67123.0,0.088018]
[1721728719171,2.2276546,67124.0,67123.0,0.088018]
[1721728720806,2.6034106,67124.0,67123.0,0.009218]
[1721728721147,2.83207325,67124.0,67123.0,0.009218]
[1721728721935,2.81807325,67124.0,67123.0,0.009218]
[1721728722307,2.83207325,67124.0,67123.0,0.009218]
[1721728722832,2.81807325,67124.0,67123.0,0.009218]
[1721728723412,2.80407325,67124.0,67123.0,0.009218]
[1721728723611,2.81807325,67124.0,67123.0,0.009218]
[1721728723811,2.81807325,67124.0,67123.0,0.00916376]
[1721728724249,2.83207325,67124.0,67123.0,0.00916376]
[1721728724671,2.83455985,67124.0,67123.0,0.00916376]
[1721728725543,2.83455985,67124.0,67123.0,0.00416376]
[1721728726370,3.13251585,67124.0,67123.0,0.00416376]
[1721728726586,2.83455985,67124.0,67123.0,0.00416376]
[1721728727001,3.13251585,67124.0,67123.0,0.00416376]
[1721728727869,3.1324213,67124.0,67123.0,0.00416376]
[1721728728985,2.8344653,67124.0,67123.0,0.00416376]
[1721728729572,3.1324213,67124.0,67123.0,0.00416376]
[1721728729775,2.8344653,67124.0,67123.0,0.00416376]
[1721728730169,3.1324213,67124.0,67123.0,0.00416376]
[1721728730935,2.8344653,67124.0,67123.0,0.00416376]
[1721728731047,2.72679573,67124.0,67123.0,0.00416376]
[1721728731252,2.83328238,67124.0,67123.0,0.00416376]
[1721728731494,2.67378238,67124.0,67123.0,0.00416376]
[1721728733279,2.52681973,67124.0,67123.0,0.00416376]
[1721728734315,2.54258671,67124.0,67123.0,0.00416376]
[1721728735376,2.52758671,67124.0,67123.0,0.00416376]
[1721728735592,2.54258671,67124.0,67123.0,0.00416376]
[1721728737507,2.54251816,67124.0,67123.0,0.00416376]
[1721728737746,2.56919878,67124.0,67123.0,0.00416376]
[1721728740521,2.62893578,67124.0,67123.0,0.00416376]
[1721728740723,2.44933031,67124.0,67123.0,0.00416376]
[1721728740927,2.62815966,67124.0,67123.0,0.00416376]
[1721728742467,2.61315966,67124.0,67123.0,0.00416376]